fUST/lending_fUST_20250126
["ID","MTS","AMOUNT","RATE_DAILY","PERIOD"]
[350445508,1737880246863,-714.1,0.00016575,2]
[350445509,1737880246872,-500.0,0.00016575,2]
[350445510,1737880246881,-500.0,0.00016575,2]
[350445511,1737880246891,-500.0,0.00016575,2]
[350445512,1737880246900,-794.67,0.00016575,2]
[350445513,1737880246910,-500.0,0.00016575,2]
[350445514,1737880246919,-500.0,0.00016575,2]
[350445515,1737880246929,-500.0,0.00016575,2]
[350445516,1737880246938,-500.0,0.00016575,2]
[350445517,1737880246948,-500.0,0.00016575,2]
[350445518,1737880246958,-500.0,0.00016575,2]
[350445519,1737880246967,-500.0,0.00016575,2]
[350445520,1737880246977,-321.85477674,0.00016575,2]
[350445521,1737880246986,-500.0,0.00016575,2]
[350445522,1737880246995,-500.0,0.00016575,2]
[350445523,1737880247005,-500.0,0.00016575,2]
[350445524,1737880247014,-500.0,0.00016575,2]
[350445525,1737880247023,-2307.16,0.00016575,2]
[350445526,1737880247033,-500.0,0.00016575,2]
[350445527,1737880247042,-500.0,0.00016575,2]
[350445528,1737880247052,-500.0,0.00016575,2]
[350445529,1737880247065,-727.46,0.00016575,2]
[350445530,1737880247075,-945.51,0.00016575,2]
[350445531,1737880247084,-500.0,0.00016575,2]
[350445532,1737880247093,-1492.35,0.00016575,2]
[350445533,1737880247219,-500.0,0.00016575,2]
[350445534,1737880247229,-9661.47,0.00016575,2]
[350445535,1737880247239,-500.0,0.00016575,2]
[350445536,1737880247249,-500.0,0.00016575,2]
[350445537,1737880247258,-948.56,0.00016575,2]
[350445538,1737880247268,-500.0,0.00016575,2]
[350445539,1737880247277,-500.0,0.00016575,2]
[350445540,1737880247286,-500.0,0.00016575,2]
[350445541,1737880247296,-500.0,0.00016575,2]
[350445542,1737880247306,-500.0,0.00016575,2]
[350445543,1737880247316,-649.69694849,0.00016575,2]
[350445544,1737880247325,-500.0,0.00016575,2]
[350445545,1737880247334,-516.01,0.00016575,2]
[350445546,1737880247344,-500.0,0.00016575,2]
[350445547,1737880247353,-798.52,0.00016575,2]
[350445548,1737880247363,-500.0,0.00016575,2]
[350445549,1737880247372,-500.0,0.00016575,2]
[350445550,1737880247382,-302.72823531,0.00016575,2]
[350445551,1737880247415,-500.0,0.00016438,2]
[350445552,1737880247425,-528.79696096,0.00016438,2]
[350445553,1737880247434,-197.27176469,0.00016575,2]
[350445554,1737880247444,-151.0,0.00016575,2]
[350445555,1737880247453,-500.0,0.00016575,2]
[350445556,1737880247462,-500.0,0.00016575,2]
[350445557,1737880247472,-1647.66583096,0.00016646,2]
[350445558,1737880247481,-501.09024119,0.00016712,2]
[350445559,1737880247491,-500.0,0.00016712,2]
[350445560,1737880247500,-151.0,0.00016712,2]
[350445561,1737880247509,-151.0,0.00016712,2]
[350445562,1737880247519,-151.0,0.00016712,2]
[350445563,1737880247529,-151.0,0.00016712,2]
[350445564,1737880247538,-151.0,0.00016712,2]
[350445565,1737880247547,-500.0,0.00016712,2]
[350445566,1737880247558,-500.0,0.00016712,2]
[350445567,1737880247567,-151.0,0.00016712,2]
[350445568,1737880247576,-151.0,0.00016712,2]
[350445569,1737880247585,-500.0,0.00016712,2]
[350445570,1737880247595,-500.0,0.00016712,2]
[350445571,1737880247604,-500.0,0.00016712,2]
[350445572,1737880247613,-500.0,0.00016712,2]
[350445573,1737880247623,-222.10057,0.00016712,2]
[350445574,1737880247632,-500.0,0.00016712,2]
[350445575,1737880247641,-222.10057,0.00016712,2]
[350445576,1737880247651,-222.10057,0.00016712,2]
[350445577,1737880247660,-222.100571,0.00016712,2]
[350445578,1737880247670,-275.82935,0.00016712,2]
[350445579,1737880247679,-275.82934983,0.00016712,2]
[350445580,1737880247689,-500.0,0.00016712,2]
[350445581,1737880247699,-500.0,0.00016712,2]
[350445582,1737880247708,-496.13841237,0.00016712,2]
[350445583,1737880247719,-500.0,0.00016712,2]
[350445584,1737880247728,-500.0,0.00016712,2]
[350445585,1737880247737,-500.0,0.00016712,2]
[350445586,1737880247747,-500.0,0.00016712,2]
[350445587,1737880247757,-500.0,0.00016712,2]
[350445588,1737880247766,-500.0,0.00016712,2]
[350445589,1737880247775,-500.0,0.00016712,2]
[350445590,1737880247785,-500.0,0.00016712,2]
[350445591,1737880247794,-500.0,0.00016712,2]
[350445592,1737880247803,-454.90272626,0.00016712,2]
[350445593,1737880247812,-500.0,0.00016712,2]
[350445594,1737880247822,-500.0,0.00016712,2]
[350445595,1737880247831,-151.0,0.00016712,2]
[350445596,1737880247841,-151.0,0.00016712,2]
[350445597,1737880247850,-500.0,0.00016712,2]
[350445598,1737880247860,-551.89241972,0.00016712,2]
[350445599,1737880247872,-151.0,0.00016712,2]
[350445600,1737880247881,-151.0,0.00016712,2]
[350445601,1737880247892,-500.0,0.00016712,2]
[350445602,1737880247902,-500.0,0.00016712,2]
[350445603,1737880247911,-500.0,0.00016712,2]
[350445604,1737880247920,-500.0,0.00016712,2]
[350445605,1737880247930,-500.0,0.00016712,2]
[350445606,1737880247939,-955.41,0.00016712,2]
[350445607,1737880247949,-500.0,0.00016712,2]
[350445608,1737880247958,-500.0,0.00016712,2]
[350445609,1737880247968,-595.14374155,0.00016712,2]
[350445610,1737880247978,-500.0,0.00016712,2]
[350445611,1737880247988,-500.0,0.00016712,2]
[350445612,1737880247997,-518.36,0.00016712,2]
[350445613,1737880248007,-500.0,0.00016712,2]
[350445614,1737880248017,-579.45,0.00016712,2]
[350445615,1737880248026,-219.62,0.00016712,2]
[350445616,1737880248036,-500.0,0.00016712,2]
[350445617,1737880248046,-611.5,0.00016712,2]
[350445618,1737880248056,-500.0,0.00016712,2]
[350445619,1737880248070,-500.0,0.00016712,2]
[350445620,1737880248080,-500.0,0.00016712,2]
[350445621,1737880248089,-500.0,0.00016712,2]
[350445622,1737880248100,-409.70620758,0.00016712,2]
[350445640,1737880374778,165.879786,0.00022,30]
[350445641,1737880391905,157.136365,0.00022,30]
[350445642,1737880653584,239.494774,0.00013973,2]
[350445645,1737880975067,1115.3642019,0.00014773,2]
[350445647,1737881126602,162.328899,0.00015011,2]
[350445649,1737881146211,23767.2533507,0.00014787,2]
[350445655,1737881313964,210.835094,0.00014831,2]
[350445696,1737881432724,-162.328899,0.00015316,2]
[350445697,1737881432733,-162.328899,0.00015322,2]
[350445698,1737881432743,-162.328899,0.00015327,2]
[350445699,1737881432752,-162.328899,0.00015333,2]
[350445700,1737881432761,-162.328899,0.00015338,2]
[350445701,1737881432770,-162.328899,0.00015343,2]
[350445702,1737881432779,-162.328899,0.00015349,2]
[350445703,1737881432787,-162.328899,0.00015354,2]
[350445704,1737881432796,-162.328899,0.0001536,2]
[350445705,1737881432806,-162.328899,0.00015365,2]
[350445706,1737881432815,-162.328899,0.00015371,2]
[350445707,1737881432824,-162.328899,0.00015376,2]
[350445708,1737881432834,-162.328899,0.00015382,2]
[350445709,1737881432843,-162.328899,0.00015387,2]
[350445711,1737881432852,-162.328899,0.00015393,2]
[350445712,1737881432862,-232.5133031,0.00015395,2]
[350445714,1737881432875,-282.935,0.0001587,2]
[350445715,1737881432883,-163.0,0.00015919,2]
[350445716,1737881432892,-152.0,0.0001612,2]
[350445717,1737881432901,-366.91335197,0.00016337,2]
[350445718,1737881432912,-366.91335193,0.00016337,2]
[350445719,1737881432921,-366.91335193,0.00016338,2]
[350445720,1737881432930,-366.91335193,0.00016338,2]
[350445721,1737881432941,-366.91335193,0.00016338,2]
[350445722,1737881432950,-300.0,0.00016338,2]
[350445723,1737881432959,-204.73440745,0.00016338,2]
[350445724,1737881432968,-259.635,0.0001636,2]
[350445725,1737881432976,-2055.0,0.0001636,2]
[350445726,1737881432986,-542.695,0.0001636,2]
[350445727,1737881432995,-2304.0,0.0001636,2]
[350445728,1737881433004,-150.823,0.0001636,2]
[350445729,1737881433013,-150.307,0.0001636,2]
[350445730,1737881433022,-395.0,0.0001636,2]
[350445731,1737881433031,-1000.0600036,0.00016436,2]
[350445732,1737881433041,-500.0,0.00016436,2]
[350445733,1737881433050,-500.0,0.00016437,2]
[350445734,1737881433059,-500.0,0.00016437,2]
[350445735,1737881433069,-500.0,0.00016437,2]
[350445736,1737881433078,-500.0,0.00016437,2]
[350445737,1737881433088,-500.0,0.00016437,2]
[350445738,1737881433097,-500.0,0.00016437,2]
[350445739,1737881433107,-391.8343938,0.00016437,2]
[350445740,1737881433116,-500.0,0.00016437,2]
[350445741,1737881433125,-500.0,0.00016437,2]
[350445742,1737881433135,-500.0,0.00016437,2]
[350445743,1737881433144,-500.0,0.00016437,2]
[350445744,1737881433154,-500.0,0.00016437,2]
[350445745,1737881433164,-500.0,0.00016437,2]
[350445746,1737881433175,-500.0,0.00016437,2]
[350445747,1737881433184,-500.0,0.00016437,2]
[350445748,1737881433195,-500.0,0.00016437,2]
[350445749,1737881433204,-500.0,0.00016437,2]
[350445750,1737881433214,-464.47202277,0.00016437,2]
[350445751,1737881433223,-500.0,0.00016437,2]
[350445752,1737881433232,-500.0,0.00016437,2]
[350445753,1737881433241,-421.79165925,0.00016437,2]
[350445754,1737881433251,-500.0,0.00016437,2]
[350445755,1737881433260,-500.0,0.00016437,2]
[350445756,1737881433269,-500.0,0.00016437,2]
[350445757,1737881433279,-500.0,0.00016437,2]
[350445758,1737881433288,-500.0,0.00016437,2]
[350445759,1737881433298,-500.0,0.00016437,2]
[350445760,1737881433308,-500.0,0.00016437,2]
[350445761,1737881433318,-500.0,0.00016437,2]
[350445762,1737881433327,-500.0,0.00016437,2]
[350445763,1737881433337,-500.0,0.00016437,2]
[350445764,1737881433346,-500.0,0.00016437,2]
[350445765,1737881433356,-500.0,0.00016437,2]
[350445766,1737881433367,-500.0,0.00016437,2]
[350445767,1737881433377,-500.0,0.00016437,2]
[350445768,1737881433386,-500.0,0.00016437,2]
[350445769,1737881433395,-500.0,0.00016437,2]
[350445770,1737881433404,-500.0,0.00016437,2]
[350445771,1737881433414,-500.0,0.00016437,2]
[350445772,1737881433423,-500.0,0.00016437,2]
[350445773,1737881433432,-500.0,0.00016437,2]
[350445774,1737881433441,-500.0,0.00016437,2]
[350445775,1737881433450,-500.0,0.00016437,2]
[350445776,1737881433461,-500.0,0.00016437,2]
[350445777,1737881433470,-500.0,0.00016437,2]
[350445778,1737881433479,-500.0,0.00016437,2]
[350445779,1737881433489,-500.0,0.00016437,2]
[350445780,1737881433499,-500.0,0.00016437,2]
[350445781,1737881433635,-500.0,0.00016437,2]
[350445782,1737881433646,-500.0,0.00016437,2]
[350445783,1737881433656,-500.0,0.00016437,2]
[350445784,1737881433666,-500.0,0.00016437,2]
[350445785,1737881433675,-500.0,0.00016437,2]
[350445786,1737881433686,-500.0,0.00016437,2]
[350445787,1737881433695,-500.0,0.00016437,2]
[350445788,1737881433705,-500.0,0.00016437,2]
[350445789,1737881433715,-500.0,0.00016437,2]
[350445790,1737881433725,-500.0,0.00016437,2]
[350445791,1737881433734,-500.0,0.00016437,2]
[350445792,1737881433743,-500.0,0.00016437,2]
[350445793,1737881433753,-500.0,0.00016437,2]
[350445794,1737881433762,-500.0,0.00016437,2]
[350445795,1737881433771,-500.0,0.00016437,2]
[350445796,1737881433782,-500.0,0.00016437,2]
[350445797,1737881433791,-500.0,0.00016437,2]
[350445798,1737881433801,-500.0,0.00016437,2]
[350445799,1737881433810,-500.0,0.00016437,2]
[350445800,1737881433820,-500.0,0.00016437,2]
[350445801,1737881433830,-261.78845918,0.00016437,2]
[350445802,1737881433840,-500.0,0.00016437,2]
[350445803,1737881433850,-500.0,0.00016437,2]
[350445804,1737881433860,-500.0,0.00016437,2]
[350445805,1737881433873,-500.0,0.00016437,2]
[350445806,1737881433884,-500.0,0.00016437,2]
[350445807,1737881433894,-500.0,0.00016437,2]
[350445808,1737881433903,-500.0,0.00016437,2]
[350445809,1737881433912,-500.0,0.00016437,2]
[350445810,1737881433921,-400.0,0.00016437,2]
[350445811,1737881433931,-500.0,0.00016437,2]
[350445812,1737881433941,-500.0,0.00016437,2]
[350445813,1737881433950,-500.0,0.00016437,2]
[350445814,1737881433959,-500.0,0.00016437,2]
[350445815,1737881433969,-500.0,0.00016437,2]
[350445816,1737881433979,-500.0,0.00016437,2]
[350445817,1737881433988,-500.0,0.00016437,2]
[350445818,1737881433998,-500.0,0.00016437,2]
[350445819,1737881434007,-262.93309984,0.00016437,2]
[350445820,1737881434016,-500.0,0.00016437,2]
[350445821,1737881434026,-500.0,0.00016437,2]
[350445822,1737881434035,-585.20170273,0.00016437,2]
[350445823,1737881434044,-500.0,0.00016437,2]
[350445824,1737881434054,-500.0,0.00016437,2]
[350445825,1737881434063,-500.0,0.00016437,2]
[350445826,1737881434073,-500.0,0.00016437,2]
[350445827,1737881434083,-500.0,0.00016437,2]
[350445828,1737881434092,-500.0,0.00016437,2]
[350445829,1737881434102,-522.68813703,0.00016437,2]
[350445830,1737881434111,-500.0,0.00016437,2]
[350445831,1737881434120,-500.0,0.00016437,2]
[350445832,1737881434129,-500.0,0.00016437,2]
[350445833,1737881434139,-383.1881066,0.00016437,2]
[350445857,1737881438438,-116.8118934,0.00016437,2]
[350445858,1737881438452,-500.0,0.00016437,2]
[350445859,1737881438464,-343.30411691,0.00016437,2]
[350445860,1737881438473,-503.65954905,0.00016438,2]
[350445861,1737881438483,-235.61196644,0.00016438,2]
[350445862,1737881438492,-207.97586021,0.00016438,2]
[350445863,1737881438501,-500.0,0.00016438,2]
[350445864,1737881438510,-500.0,0.00016438,2]
[350445865,1737881438519,-500.0,0.00016438,2]
[350445866,1737881438528,-500.87358427,0.00016438,2]
[350445867,1737881438537,-500.0,0.00016438,2]
[350445868,1737881438547,-500.0,0.00016438,2]
[350445869,1737881438556,-500.0,0.00016438,2]
[350445870,1737881438565,-500.79183786,0.00016438,2]
[350445871,1737881438575,-501.24772423,0.00016438,2]
[350445872,1737881438585,-501.03429294,0.00016438,2]
[350445873,1737881438594,-502.26846319,0.00016438,2]
[350445874,1737881438603,-500.0,0.00016438,2]
[350445875,1737881438612,-146.91880878,0.00016438,2]
[350445876,1737881438626,-354.71205342,0.00016438,2]
[350445877,1737881438635,-500.99634285,0.00016438,2]
[350445878,1737881438644,-501.19335913,0.00016438,2]
[350445879,1737881438654,-500.0,0.00016438,2]
[350445880,1737881438663,-501.62952515,0.00016438,2]
[350445881,1737881438673,-500.0,0.00016438,2]
[350445882,1737881438682,-500.0,0.00016438,2]
[350445884,1737881438691,-500.0,0.00016438,2]
[350445886,1737881438700,-500.0,0.00016438,2]
[350445887,1737881438709,-501.64442395,0.00016438,2]
[350445888,1737881438717,-500.98174546,0.00016438,2]
[350445889,1737881438726,-502.32749798,0.00016438,2]
[350445890,1737881438735,-500.0,0.00016438,2]
[350445891,1737881438744,-500.0,0.00016438,2]
[350445892,1737881438753,-501.94886572,0.00016438,2]
[350445893,1737881438763,-501.7035594,0.00016438,2]
[350445894,1737881438772,-500.0,0.00016438,2]
[350445895,1737881438781,-500.0,0.00016438,2]
[350445896,1737881438791,-500.0,0.00016438,2]
[350445897,1737881438802,-500.0,0.00016438,2]
[350445898,1737881438817,-500.0,0.00016438,2]
[350445899,1737881438826,-502.06194194,0.00016438,2]
[350445900,1737881438836,-500.0,0.00016438,2]
[350445901,1737881438845,-590.10173873,0.00016438,2]
[350445902,1737881438854,-507.28566542,0.00016438,2]
[350445903,1737881438865,-501.71599731,0.00016438,2]
[350445904,1737881438876,-500.49830439,0.00016438,2]
[350445905,1737881438886,-502.2932849,0.00016438,2]
[350445906,1737881438895,-500.0,0.00016438,2]
[350445907,1737881438904,-501.00789696,0.00016438,2]
[350445908,1737881438914,-500.0,0.00016438,2]
[350445909,1737881438923,-500.0,0.00016438,2]
[350445910,1737881438932,-502.29311078,0.00016438,2]
[350445911,1737881438946,-366.56958221,0.00016438,2]
[350445912,1737881438956,-500.0,0.00016438,2]
[350445913,1737881438966,-500.0,0.00016438,2]
[350445914,1737881438975,-500.0,0.00016438,2]
[350445915,1737881438984,-520.27207513,0.00016438,2]
[350445916,1737881438993,-502.3482059,0.00016438,2]
[350445917,1737881439002,-500.0,0.00016438,2]
[350445918,1737881439011,-477.85946273,0.00016438,2]
[350445919,1737881439020,-500.0,0.00016438,2]
[350445920,1737881439030,-500.0,0.00016438,2]
[350445921,1737881439039,-500.0,0.00016438,2]
[350445922,1737881439048,-500.0,0.00016438,2]
[350445923,1737881439057,-500.0,0.00016438,2]
[350445924,1737881439066,-500.0,0.00016438,2]
[350445925,1737881439080,-500.0,0.00016438,2]
[350445926,1737881439090,-500.0,0.00016438,2]
[350445927,1737881439099,-506.00447112,0.00016438,2]
[350445928,1737881439108,-500.0,0.00016438,2]
[350445929,1737881439117,-501.56829494,0.00016438,2]
[350445930,1737881439126,-500.0,0.00016438,2]
[350445931,1737881439135,-500.0,0.00016438,2]
[350445932,1737881439144,-500.0,0.00016438,2]
[350445933,1737881439153,-501.15220094,0.00016438,2]
[350445934,1737881439162,-500.0,0.00016438,2]
[350445935,1737881439171,-503.78838878,0.00016438,2]
[350445936,1737881439180,-500.0,0.00016438,2]
[350445937,1737881439189,-530.46160209,0.00016438,2]
[350445938,1737881439198,-501.25145232,0.00016438,2]
[350445939,1737881439207,-500.0,0.00016438,2]
[350445940,1737881439216,-501.14879515,0.00016438,2]
[350445941,1737881439225,-500.0,0.00016438,2]
[350445942,1737881439234,-501.35728977,0.00016438,2]
[350445943,1737881439244,-500.0,0.00016438,2]
[350445944,1737881439253,-500.0,0.00016438,2]
[350445945,1737881439262,-501.57824832,0.00016438,2]
[350445946,1737881439273,-500.98027932,0.00016438,2]
[350445947,1737881439282,-500.0,0.00016438,2]
[350445948,1737881439292,-500.0,0.00016438,2]
[350445949,1737881439301,-501.3717117,0.00016438,2]
[350445950,1737881439310,-500.0,0.00016438,2]
[350445951,1737881439319,-500.0,0.00016438,2]
[350445952,1737881439328,-502.58827212,0.00016438,2]
[350445953,1737881439339,-500.0,0.00016438,2]
[350445954,1737881439348,-500.0,0.00016438,2]
[350445955,1737881439358,-501.26315937,0.00016438,2]
[350445956,1737881439367,-501.41277902,0.00016438,2]
[350445957,1737881439376,-500.0,0.00016438,2]
[350445958,1737881439385,-500.0,0.00016438,2]
[350445959,1737881439394,-500.0,0.00016438,2]
[350445960,1737881439403,-500.0,0.00016438,2]
[350445961,1737881439412,-500.0,0.00016438,2]
[350445962,1737881439422,-502.11131472,0.00016438,2]
[350445963,1737881439431,-500.0,0.00016438,2]
[350445964,1737881439440,-503.09687071,0.00016438,2]
[350445965,1737881439450,-500.0,0.00016438,2]
[350445966,1737881439460,-500.0,0.00016438,2]
[350445967,1737881439469,-500.0,0.00016438,2]
[350445968,1737881439478,-411.13656421,0.00016438,2]
[350445969,1737881439487,-224.24683,0.00016438,2]
[350445970,1737881439497,-501.46986409,0.00016438,2]
[350445971,1737881439507,-500.0,0.00016438,2]
[350445972,1737881439518,-500.0,0.00016438,2]
[350445973,1737881439527,-501.33112994,0.00016438,2]
[350445974,1737881439537,-485.95503907,0.00016438,2]
[350445975,1737881439548,-500.0,0.00016438,2]
[350445976,1737881439558,-500.0,0.00016438,2]
[350445977,1737881439568,-500.0,0.00016438,2]
[350445978,1737881439577,-500.0,0.00016438,2]
[350445979,1737881439587,-500.0,0.00016438,2]
[350445980,1737881439596,-501.08707548,0.00016438,2]
[350445981,1737881439606,-500.0,0.00016438,2]
[350445982,1737881439616,-500.0,0.00016438,2]
[350445983,1737881439625,-501.13497715,0.00016438,2]
[350445984,1737881439635,-500.0,0.00016438,2]
[350445985,1737881439644,-500.0,0.00016438,2]
[350445986,1737881439653,-501.97239853,0.00016438,2]
[350445987,1737881439663,-501.84817511,0.00016438,2]
[350445988,1737881439673,-500.0,0.00016438,2]
[350445989,1737881439682,-500.0,0.00016438,2]
[350445990,1737881439692,-502.27743256,0.00016438,2]
[350445991,1737881439701,-505.93156065,0.00016438,2]
[350445992,1737881439710,-500.0,0.00016438,2]
[350445993,1737881439720,-500.0,0.00016438,2]
[350445994,1737881439729,-500.0,0.00016438,2]
[350445995,1737881439738,-500.0,0.00016438,2]
[350445996,1737881439747,-500.0,0.00016438,2]
[350445997,1737881439756,-500.0,0.00016438,2]
[350445998,1737881439765,-500.0,0.00016438,2]
[350445999,1737881439774,-500.0,0.00016438,2]
[350446000,1737881439783,-500.0,0.00016438,2]
[350446001,1737881439792,-500.0,0.00016438,2]
[350446002,1737881439802,-500.0,0.00016438,2]
[350446003,1737881439811,-500.0,0.00016438,2]
[350446004,1737881439821,-500.0,0.00016438,2]
[350446005,1737881439830,-593.81,0.00016438,2]
[350446006,1737881439840,-500.0,0.00016438,2]
[350446007,1737881439849,-500.0,0.00016438,2]
[350446008,1737881439860,-500.0,0.00016438,2]
[350446009,1737881439873,-502.10007293,0.00016438,2]
[350446010,1737881439882,-500.0,0.00016438,2]
[350446011,1737881439891,-500.0,0.00016438,2]
[350446012,1737881439900,-500.0,0.00016438,2]
[350446013,1737881439909,-500.0,0.00016438,2]
[350446014,1737881439919,-500.0,0.00016438,2]
[350446015,1737881439928,-500.0,0.00016438,2]
[350446016,1737881439937,-501.18089669,0.00016438,2]
[350446017,1737881439946,-500.0,0.00016438,2]
[350446018,1737881439955,-500.0,0.00016438,2]
[350446019,1737881439964,-500.0,0.00016438,2]
[350446020,1737881439974,-151.0,0.00016438,2]
[350446021,1737881439983,-500.0,0.00016438,2]
[350446022,1737881439992,-500.0,0.00016438,2]
[350446023,1737881440001,-310.69490356,0.00016438,2]
[350446024,1737881440010,-332.29352195,0.00016438,2]
[350446025,1737881440019,-501.88362113,0.00016438,2]
[350446026,1737881440029,-500.0,0.00016438,2]
[350446027,1737881440038,-502.42561116,0.00016438,2]
[350446028,1737881440049,-226.97424226,0.00016438,2]
[350446029,1737881440058,-501.92619011,0.00016438,2]
[350446030,1737881440067,-506.20323572,0.00016438,2]
[350446032,1737881440076,-503.31149125,0.00016438,2]
[350446033,1737881440086,-500.0,0.00016438,2]
[350446034,1737881440095,-500.0,0.00016438,2]
[350446035,1737881440105,-612.17241693,0.00016438,2]
[350446038,1737881440228,-517.81840412,0.00016438,2]
[350446040,1737881440239,-500.0,0.00016438,2]
[350446041,1737881440248,-503.23107592,0.00016438,2]
[350446042,1737881440258,-197.31653432,0.00016438,2]
[350446043,1737881440268,-500.0,0.00016438,2]
[350446044,1737881440277,-500.0,0.00016438,2]
[350446046,1737881440287,-503.0378012,0.00016438,2]
[350446048,1737881440296,-500.0,0.00016438,2]
[350446049,1737881440306,-500.0,0.00016438,2]
[350446051,1737881440316,-500.0,0.00016438,2]
[350446052,1737881440325,-501.38697664,0.00016438,2]
[350446053,1737881440335,-500.0,0.00016438,2]
[350446054,1737881440344,-500.0,0.00016438,2]
[350446055,1737881440353,-489.93980475,0.00016438,2]
[350446056,1737881440362,-221.71783489,0.00016438,2]
[350446057,1737881440371,-515.63745862,0.00016438,2]
[350446058,1737881440380,-151.0,0.00016438,2]
[350446059,1737881440389,-500.0,0.00016438,2]
[350446060,1737881440398,-500.0,0.00016438,2]
[350446061,1737881440408,-500.0,0.00016438,2]
[350446062,1737881440418,-500.0,0.00016438,2]
[350446063,1737881440428,-500.0,0.00016438,2]
[350446064,1737881440438,-500.0,0.00016438,2]
[350446066,1737881440447,-500.0,0.00016438,2]
[350446067,1737881440456,-500.0,0.00016438,2]
[350446068,1737881440466,-500.0,0.00016438,2]
[350446069,1737881440475,-500.0,0.00016438,2]
[350446070,1737881440484,-500.74592046,0.00016438,2]
[350446071,1737881440493,-565.51365423,0.00016438,2]
[350446072,1737881440502,-500.0,0.00016438,2]
[350446073,1737881440511,-500.0,0.00016438,2]
[350446074,1737881440520,-500.0,0.00016438,2]
[350446075,1737881440530,-500.0,0.00016438,2]
[350446076,1737881440539,-501.2211955,0.00016438,2]
[350446077,1737881440549,-500.78599046,0.00016438,2]
[350446079,1737881440558,-518.30213112,0.00016438,2]
[350446081,1737881440567,-500.0,0.00016438,2]
[350446082,1737881440577,-500.0,0.00016438,2]
[350446083,1737881440586,-279.61325516,0.00016438,2]
[350446084,1737881440595,-500.0,0.00016438,2]
[350446085,1737881440604,-500.0,0.00016438,2]
[350446086,1737881440613,-503.46361273,0.00016438,2]
[350446087,1737881440622,-500.0,0.00016438,2]
[350446088,1737881440632,-509.73284338,0.00016438,2]
[350446089,1737881440641,-500.0,0.00016438,2]
[350446090,1737881440650,-502.35749945,0.00016438,2]
[350446091,1737881440659,-501.67948385,0.00016438,2]
[350446092,1737881440669,-500.0,0.00016438,2]
[350446093,1737881440678,-500.0,0.00016438,2]
[350446094,1737881440687,-500.0,0.00016438,2]
[350446095,1737881440696,-500.0,0.00016438,2]
[350446096,1737881440706,-500.0,0.00016438,2]
[350446097,1737881440715,-500.0,0.00016438,2]
[350446098,1737881440725,-500.0,0.00016438,2]
[350446099,1737881440733,-500.0,0.00016438,2]
[350446100,1737881440742,-500.0,0.00016438,2]
[350446101,1737881440751,-500.0,0.00016438,2]
[350446102,1737881440760,-500.0,0.00016438,2]
[350446103,1737881440769,-500.0,0.00016438,2]
[350446104,1737881440779,-151.0,0.00016438,2]
[350446105,1737881440788,-151.0,0.00016438,2]
[350446106,1737881440797,-500.0,0.00016438,2]
[350446107,1737881440807,-151.0,0.00016438,2]
[350446108,1737881440816,-234.422606,0.00016438,2]
[350446109,1737881440825,-160.064285,0.00016438,2]
[350446110,1737881440835,-500.0,0.00016438,2]